bitfinex-derivatives/quotes_BTCF0:USTF0_20260118
["timestamp","ask_amount","ask_price","bid_price","bid_amount"]
[1768777632914,0.05,95072.0,95062.0,0.010523]
[1768777633109,0.05,95072.0,95058.0,0.010523]
[1768777633311,0.05,95072.0,95061.0,0.010523]
[1768777633513,0.05,95072.0,95060.0,0.09472]
[1768777634017,0.09308316,95079.0,95060.0,0.09472]
[1768777634314,0.01,95079.0,95060.0,0.1908438]
[1768777634512,0.00914123,95086.0,95060.0,0.1908438]
[1768777634811,0.09308316,95085.0,95070.0,0.010522]
[1768777635008,0.14308316,95085.0,95064.0,0.010522]
[1768777635208,0.14308316,95085.0,95066.0,0.010522]
[1768777635806,0.14308316,95085.0,95066.0,0.01067985]
[1768777636608,0.09308316,95085.0,95070.0,0.010522]
[1768777636812,0.09472,95095.0,95071.0,0.09472]
[1768777636813,0.09308316,95093.0,95071.0,0.09472]
[1768777637014,0.09308316,95098.0,95078.0,0.010521]
[1768777637219,0.09308316,95094.0,95074.0,0.03765735]
[1768777637606,0.09308316,95094.0,95071.0,0.19985764]
[1768777637607,0.09308316,95094.0,95076.0,0.010521]
[1768777638319,0.09308316,95094.0,95079.0,0.010521]
[1768777638910,0.09308316,95094.0,95076.0,0.010521]
[1768777639111,0.09308316,95094.0,95078.0,0.010521]
[1768777639309,0.09308316,95094.0,95080.0,0.010521]
[1768777639710,0.09308316,95094.0,95076.0,0.010521]
[1768777639908,0.09308316,95094.0,95078.0,0.010521]
[1768777640516,0.10222439,95100.0,95078.0,0.03765735]
[1768777640716,0.13222439,95100.0,95082.0,0.01052]
[1768777640918,0.13222439,95100.0,95083.0,0.09472]
[1768777641316,0.12308316,95100.0,95084.0,0.01052]
[1768777641719,0.03,95100.0,95084.0,0.01052]
[1768777641920,0.03,95100.0,95083.0,0.09472]
[1768777642111,0.03,95100.0,95084.0,0.01052]
[1768777643021,0.03,95100.0,95083.0,0.09472]
[1768777643424,0.05,95100.0,95083.0,0.13237735]
[1768777644017,0.00924266,95096.0,95083.0,0.03765735]
[1768777644219,0.10357705,95091.0,95082.0,0.09472]
[1768777644418,0.00905052,95090.0,95077.0,0.0566602]
[1768777644618,0.06052,95090.0,95062.0,0.17159778]
[1768777644821,0.08,95100.0,95072.0,0.09605291]
[1768777645118,0.05,95100.0,95087.0,0.09605291]
[1768777645325,0.00020097,95099.0,95081.0,0.09472]
[1768777645523,0.00020097,95098.0,95081.0,0.09472]
[1768777645819,0.05020097,95098.0,95084.0,0.01052]
[1768777646024,0.00251423,95104.0,95081.0,0.105241]
[1768777646214,0.05251423,95104.0,95081.0,0.105241]
[1768777646408,0.05251423,95104.0,95085.0,0.01052]
[1768777646614,0.05251423,95104.0,95091.0,0.010519]
[1768777646818,0.05251423,95104.0,95081.0,0.09472]
[1768777647014,0.05251423,95104.0,95085.0,0.01052]
[1768777647214,0.05251423,95104.0,95087.0,0.01052]
[1768777647514,0.05231326,95104.0,95092.0,0.010519]
[1768777648120,0.00231315,95109.0,95087.0,0.09605291]
[1768777648121,0.00231315,95109.0,95094.0,0.10657191]
[1768777648313,0.05231315,95109.0,95094.0,0.10657191]
[1768777648521,0.05231315,95109.0,95094.0,0.09605291]
[1768777649325,0.05231315,95109.0,95088.0,0.09605291]
[1768777649525,0.06283115,95109.0,95089.0,0.09472]
[1768777649726,0.05231315,95109.0,95089.0,0.09472]
[1768777650923,0.05231315,95109.0,95090.0,0.09605291]
[1768777651228,0.05231315,95109.0,95090.0,0.11624147]
[1768777651423,0.05231315,95109.0,95099.0,0.11839087]
[1768777651617,0.06683498,95122.0,95099.0,0.11839087]
[1768777651817,0.06683498,95121.0,95096.0,0.09605291]
[1768777652013,0.11683498,95121.0,95096.0,0.09605291]
[1768777652621,0.05,95121.0,95096.0,0.09605291]
[1768777652822,0.05,95121.0,95103.0,0.010518]
[1768777653019,0.05,95121.0,95103.0,0.105238]
[1768777653215,0.05,95121.0,95111.0,0.09605291]
[1768777653416,0.02294224,95121.0,95111.0,0.09605291]
[1768777653622,0.06651636,95120.0,95098.0,0.09472]
[1768777653828,0.06651636,95119.0,95098.0,0.09472]
[1768777654021,0.010518,95106.0,95092.0,0.09472]
[1768777654328,0.06,95106.0,95092.0,0.09472]
[1768777654831,0.010516,95118.0,95093.0,0.09605291]
[1768777655026,0.05,95118.0,95093.0,0.09605291]
[1768777655223,0.010517,95110.0,95094.0,0.09468]
[1768777655529,0.05,95110.0,95094.0,0.09468]
[1768777656137,0.05,95110.0,95094.0,0.19073291]
[1768777657530,0.05,95110.0,95095.0,0.09196108]
[1768777658232,0.05,95110.0,95095.0,0.10248008]
[1768777658533,0.05,95110.0,95095.0,0.09196108]
[1768777660526,0.05,95110.0,95095.0,0.10248008]
[1768777660924,0.05,95110.0,95095.0,0.09196108]
[1768777666538,0.05,95110.0,95096.0,0.09196108]
[1768777666732,0.08,95120.0,95101.0,0.09196108]
[1768777666937,0.05,95120.0,95101.0,0.10247908]
[1768777667933,0.05074655,95120.0,95101.0,0.09196108]
[1768777668137,0.00074655,95119.0,95101.0,0.09196108]
[1768777668327,0.05074655,95119.0,95101.0,0.09196108]
[1768777669930,0.05,95119.0,95109.0,0.1052028]
[1768777670131,0.01,95119.0,95109.0,0.19716388]
[1768777670332,0.00231266,95129.0,95113.0,0.00932403]
[1768777670538,0.05231266,95129.0,95119.0,0.1052028]
[1768777670935,0.05231266,95129.0,95116.0,0.09196108]
[1768777675339,0.05231266,95129.0,95113.0,0.03795283]
[1768777675639,0.03302929,95125.0,95104.0,0.09468]
[1768777675830,0.03302929,95116.0,95090.0,0.010519]
[1768777676030,0.010517,95110.0,95088.0,0.18569045]
[1768777676340,0.070517,95110.0,95089.0,0.09101045]
[1768777676531,0.06,95110.0,95090.0,0.10153045]
[1768777676729,0.06,95110.0,95095.0,0.09101045]
[1768777677133,0.06,95110.0,95098.0,0.09101045]
[1768777679338,0.05,95110.0,95098.0,0.10074369]
[1768777679741,0.05,95110.0,95098.0,0.09101045]
[1768777680633,0.05,95110.0,95098.0,0.10074369]
[1768777680947,0.03,95110.0,95103.0,0.010518]
[1768777681336,0.03,95110.0,95101.0,0.010518]
[1768777681536,0.06,95110.0,95104.0,0.09101045]
[1768777681737,0.06,95110.0,95100.0,0.09101045]
[1768777682638,0.06,95110.0,95100.0,0.10074369]
[1768777682840,0.06,95110.0,95100.0,0.09101045]
[1768777683647,0.06,95110.0,95100.0,0.10074369]
[1768777684039,0.06,95110.0,95100.0,0.09101045]
[1768777685043,0.01282766,95129.0,95108.0,0.10074369]
[1768777685254,0.06282766,95129.0,95110.0,0.09101045]
[1768777685448,0.07768928,95120.0,95110.0,0.09101045]
[1768777685643,0.05,95120.0,95110.0,0.09101045]
[1768777686245,0.07768928,95117.0,95110.0,0.09101045]
[1768777686454,0.05,95117.0,95110.0,0.09101045]
[1768777686645,0.07768928,95116.0,95110.0,0.09101045]
[1768777687046,0.00231266,95129.0,95110.0,0.09101045]
[1768777687254,0.010515,95128.0,95110.0,0.09101045]
[1768777687455,0.060515,95128.0,95110.0,0.09101045]
[1768777688450,0.05,95128.0,95114.0,0.09101045]
[1768777689342,0.05,95128.0,95116.0,0.09101045]
[1768777690158,0.03,95128.0,95118.0,0.11832395]
[1768777690956,0.03,95128.0,95116.0,0.09101045]
[1768777691351,0.03,95128.0,95112.0,0.00015776]
[1768777691352,0.00905483,95127.0,95112.0,0.00015776]
[1768777691546,0.00820517,95120.0,95099.0,0.07554487]
[1768777691760,0.05,95120.0,95100.0,0.09101045]
[1768777691953,0.05,95120.0,95102.0,0.10074369]
[1768777692158,0.05,95120.0,95104.0,0.10074369]
[1768777693362,0.04769025,95120.0,95104.0,0.10074369]
[1768777693762,0.04769025,95120.0,95106.0,0.10074369]
[1768777694063,0.04769025,95120.0,95106.0,0.09101045]
[1768777695864,0.04769025,95120.0,95110.0,0.05671156]
[1768777696368,0.04769025,95120.0,95111.0,0.05671156]
[1768777698268,0.04769025,95120.0,95110.0,0.16190163]
[1768777698662,0.04769025,95120.0,95111.0,0.05671156]
[1768777698861,0.04769025,95120.0,95110.0,0.16190163]
[1768777699066,0.04769025,95120.0,95111.0,0.05671156]
[1768777699872,0.07,95130.0,95112.0,0.09101045]
[1768777700072,0.05,95130.0,95112.0,0.14772201]
[1768777700473,0.09468,95129.0,95112.0,0.14772201]
[1768777700663,0.14468,95129.0,95112.0,0.14772201]
[1768777701473,0.14237074,95129.0,95112.0,0.14772201]
[1768777701669,0.05,95129.0,95119.0,0.10519007]
[1768777701872,0.08,95139.0,95126.0,0.10074369]
[1768777702173,0.05,95139.0,95129.0,0.10519007]
[1768777702676,0.05,95139.0,95126.0,0.09101045]
[1768777703875,0.05,95139.0,95129.0,0.10519007]
[1768777704067,0.05,95139.0,95126.0,0.09101045]
[1768777704672,0.05,95139.0,95128.0,0.10055643]
[1768777705072,0.01672909,95139.0,95130.0,0.09068635]
[1768777705278,0.03282518,95149.0,95130.0,0.09068635]
[1768777705475,0.01231228,95144.0,95131.0,0.10055643]
[1768777705878,0.00231218,95149.0,95135.0,0.10055643]
[1768777706083,0.02231218,95149.0,95140.0,0.09068635]
[1768777706781,0.04,95149.0,95140.0,0.10055643]
[1768777707684,0.03,95149.0,95142.0,0.09068635]
[1768777707873,0.02769063,95149.0,95142.0,0.09068635]
[1768777708681,0.08,95159.0,95142.0,0.09068635]
[1768777708888,0.05,95159.0,95142.0,0.09068635]
[1768777709087,0.05,95159.0,95142.0,0.09942287]
[1768777709586,0.04769122,95159.0,95142.0,0.09942287]
[1768777710882,0.04769122,95159.0,95148.0,0.09068635]
[1768777711684,0.07231169,95169.0,95146.0,0.04829837]
[1768777711685,0.07231169,95169.0,95152.0,0.09936556]
[1768777711886,0.07231169,95169.0,95149.0,0.010513]
[1768777711887,0.06231169,95169.0,95153.0,0.09068635]
[1768777713279,0.06231169,95169.0,95153.0,0.12847172]
[1768777713589,0.06231169,95169.0,95153.0,0.09068635]
[1768777713887,0.06231169,95169.0,95152.0,0.03778537]
[1768777713888,0.010511,95164.0,95152.0,0.03778537]
[1768777714074,0.060511,95164.0,95151.0,0.03778537]
[1768777714276,0.00983751,95161.0,95150.0,0.03778537]
[1768777714485,0.10745019,95157.0,95142.0,0.09464]
[1768777714685,0.10745019,95156.0,95142.0,0.09464]
[1768777714888,0.15745019,95156.0,95139.0,0.05671156]
[1768777715088,0.10745019,95153.0,95140.0,0.09464]
[1768777715279,0.16745019,95153.0,95136.0,0.09464]
[1768777715886,0.1651413,95153.0,95136.0,0.09464]
[1768777717394,0.15761268,95153.0,95136.0,0.09464]
[1768777717589,0.06,95153.0,95136.0,0.09464]
[1768777717791,0.05769171,95153.0,95136.0,0.09464]
[1768777719394,0.06,95153.0,95136.0,0.10408076]
[1768777719596,0.06,95153.0,95136.0,0.19578585]
[1768777720387,0.01,95153.0,95144.0,0.00225485]
[1768777720592,0.010512,95162.0,95145.0,0.00225485]
[1768777720896,0.070512,95162.0,95144.0,0.09170509]
[1768777721483,0.010512,95157.0,95144.0,0.09170509]
[1768777721679,0.010512,95157.0,95130.0,0.05671156]
[1768777721680,0.10512741,95146.0,95130.0,0.05671156]
[1768777721897,0.09547317,95143.0,95128.0,0.05671156]
[1768777722190,0.14547317,95143.0,95128.0,0.05671156]
[1768777722578,0.05,95143.0,95128.0,0.05671156]
[1768777723489,0.010511,95165.0,95140.0,0.010514]
[1768777723791,0.19011317,95164.0,95139.0,0.09170509]
[1768777724093,0.010512,95159.0,95139.0,0.09170509]
[1768777724391,0.00965424,95153.0,95136.0,0.05671156]
[1768777724593,0.00965424,95153.0,95135.0,0.05671156]
[1768777724594,0.00965424,95151.0,95135.0,0.05671156]
[1768777724796,0.06,95151.0,95135.0,0.05671156]
[1768777724987,0.09464,95157.0,95135.0,0.05671156]
[1768777725291,0.06,95157.0,95135.0,0.05671156]
[1768777725593,0.09464,95156.0,95135.0,0.05671156]
[1768777725784,0.14464,95156.0,95135.0,0.05671156]
[1768777726288,0.14464,95156.0,95127.0,0.07554487]
[1768777726289,0.10598417,95165.0,95137.0,0.09170509]
[1768777726483,0.15598417,95165.0,95138.0,0.09170509]
[1768777726683,0.09464,95164.0,95140.0,0.10221909]
[1768777726892,0.05,95164.0,95140.0,0.10221909]
[1768777727194,0.09464,95163.0,95140.0,0.10221909]
[1768777727386,0.05,95163.0,95140.0,0.09170509]
[1768777727885,0.09464,95162.0,95140.0,0.09170509]
[1768777728092,0.14464,95162.0,95140.0,0.09170509]
[1768777728291,0.14464,95162.0,95138.0,0.05686716]
[1768777728292,0.010512,95158.0,95138.0,0.05686716]
[1768777728489,0.05,95158.0,95139.0,0.05671156]
[1768777730092,0.05,95158.0,95140.0,0.05671156]
[1768777730482,0.010512,95157.0,95140.0,0.05671156]
[1768777730688,0.10512741,95150.0,95135.0,0.09464]
[1768777730888,0.09547317,95149.0,95135.0,0.09464]
[1768777731089,0.14547317,95149.0,95135.0,0.09464]
[1768777731692,0.05,95149.0,95135.0,0.09464]
[1768777731899,0.10512741,95156.0,95135.0,0.09464]
[1768777732094,0.15512741,95156.0,95135.0,0.09464]
[1768777732993,0.1093557,95155.0,95135.0,0.09464]
[1768777733198,0.1588437,95155.0,95135.0,0.09464]
[1768777733397,0.1588437,95155.0,95135.0,0.17018487]
[1768777734098,0.010513,95153.0,95135.0,0.17018487]
[1768777734398,0.070513,95153.0,95136.0,0.07554487]
[1768777734799,0.06,95153.0,95136.0,0.07554487]
[1768777735191,0.010513,95146.0,95128.0,0.18909577]
[1768777735393,0.010513,95146.0,95125.0,0.09445577]
[1768777735394,0.01964112,95135.0,95125.0,0.09445577]
[1768777735700,0.00912612,95134.0,95111.0,0.09464]
[1768777735896,0.0988437,95121.0,95104.0,0.09464]
[1768777736096,0.0988437,95117.0,95096.0,0.09464]
[1768777736401,0.1488437,95117.0,95096.0,0.09464]
[1768777736596,0.0988437,95116.0,95096.0,0.09464]
[1768777736789,0.0988437,95104.0,95086.0,0.09464]
[1768777736991,0.0988437,95096.0,95072.0,0.09464]
[1768777737200,0.0988437,95095.0,95072.0,0.105162]
[1768777737405,0.1488437,95095.0,95072.0,0.105162]
[1768777737591,0.10796982,95102.0,95075.0,0.09500404]
[1768777737788,0.010514,95137.0,95087.0,0.00133096]
[1768777737789,0.0988437,95111.0,95087.0,0.00133096]
[1768777737990,0.09464,95110.0,95087.0,0.00133096]
[1768777738194,0.0988437,95111.0,95089.0,0.00133096]
[1768777738391,0.05,95111.0,95090.0,0.00133096]
[1768777738898,0.0988437,95108.0,95085.0,0.09464]
[1768777739098,0.0988437,95106.0,95085.0,0.09464]
[1768777739301,0.1488437,95106.0,95085.0,0.09464]
[1768777739908,0.1488437,95106.0,95085.0,0.10516]
[1768777740108,0.05,95106.0,95087.0,0.01052]
[1768777740298,0.04769208,95106.0,95087.0,0.01052]
[1768777740499,0.0988437,95114.0,95088.0,0.00190767]
[1768777740804,0.09464,95124.0,95102.0,0.09691171]
[1768777741005,0.1288437,95124.0,95102.0,0.09464]
[1768777741304,0.010516,95123.0,95102.0,0.09464]
[1768777741604,0.010516,95123.0,95081.0,0.21156]
[1768777741605,0.0988437,95113.0,95089.0,0.00250608]
[1768777741798,0.0988437,95113.0,95069.0,0.389202]
[1768777741799,0.10796982,95112.0,95084.0,0.09751012]
[1768777741998,0.1488437,95112.0,95089.0,0.09519649]
[1768777742199,0.1593607,95112.0,95089.0,0.09519649]
[1768777742702,0.1488437,95112.0,95089.0,0.09519649]
[1768777743107,0.09464,95116.0,95091.0,0.00250608]
[1768777743406,0.53816,95133.0,95090.0,0.01052]
[1768777743407,0.0988437,95127.0,95099.0,0.00208435]
[1768777743598,0.1488437,95127.0,95099.0,0.00208435]
[1768777743997,0.1488437,95127.0,95099.0,0.09708839]
[1768777744393,0.1488437,95127.0,95099.0,0.10760639]
[1768777744701,0.05,95127.0,95107.0,0.010518]
[1768777745009,0.05,95127.0,95108.0,0.09468]
[1768777745197,0.1488437,95127.0,95108.0,0.09468]
[1768777745998,0.010516,95124.0,95108.0,0.09468]
[1768777746205,0.0988437,95120.0,95102.0,0.09468]
[1768777746406,0.0988437,95119.0,95102.0,0.09468]
[1768777746608,0.1488437,95119.0,95102.0,0.09468]
[1768777747098,0.05,95119.0,95102.0,0.09468]
[1768777748499,0.05,95119.0,95102.0,0.09236626]
[1768777750008,0.0988437,95125.0,95102.0,0.09236626]
[1768777750205,0.1488437,95125.0,95102.0,0.09005214]
[1768777750506,0.1093597,95124.0,95102.0,0.09005214]
[1768777750708,0.1593597,95124.0,95102.0,0.09005214]
[1768777752006,0.010516,95121.0,95102.0,0.09005214]
[1768777752213,0.1693597,95121.0,95102.0,0.09005214]
[1768777753009,0.1588437,95121.0,95102.0,0.09005214]
[1768777753606,0.0988437,95103.0,95091.0,0.05645243]
[1768777753917,0.09468,95120.0,95087.0,0.00276921]
[1768777753918,0.0988437,95110.0,95087.0,0.00276921]
[1768777754114,0.1488437,95110.0,95087.0,0.00276921]
[1768777755013,0.05,95110.0,95092.0,0.00276921]
[1768777755420,0.05,95110.0,95091.0,0.09500404]
[1768777755713,0.10796982,95106.0,95083.0,0.05645243]
[1768777755912,0.0988437,95105.0,95083.0,0.05645243]
[1768777756106,0.0988437,95104.0,95083.0,0.16160434]
[1768777756309,0.1488437,95104.0,95083.0,0.16160434]
[1768777756613,0.1488437,95104.0,95080.0,0.00935296]
[1768777757316,0.010518,95102.0,95080.0,0.00935296]
[1768777757508,0.060518,95102.0,95080.0,0.00935296]
[1768777758819,0.05,95102.0,95080.0,0.00935296]
[1768777761017,0.05,95102.0,95082.0,0.01052]
[1768777761222,0.0988437,95104.0,95086.0,0.01052]
[1768777761419,0.05,95104.0,95090.0,0.010519]
[1768777761723,0.010517,95111.0,95088.0,0.00935296]
[1768777761924,0.070517,95111.0,95088.0,0.00935296]
[1768777762123,0.00015767,95107.0,95088.0,0.00935296]
[1768777762319,0.06015767,95107.0,95087.0,0.09500404]
[1768777763225,0.00015767,95107.0,95087.0,0.09500404]
[1768777764619,0.09468,95117.0,95094.0,0.00911642]
[1768777764819,0.05,95117.0,95094.0,0.00911642]
[1768777765017,0.010517,95116.0,95095.0,0.00911642]
[1768777765219,0.060517,95116.0,95095.0,0.00911642]
[1768777766519,0.05,95116.0,95095.0,0.00911642]
[1768777767022,0.010517,95115.0,95095.0,0.00911642]
[1768777767218,0.060517,95115.0,95094.0,0.09146989]
[1768777767418,0.05,95115.0,95094.0,0.09146989]
[1768777768522,0.00953406,95111.0,95093.0,0.09468]
[1768777768723,0.10498223,95110.0,95093.0,0.09468]
[1768777768923,0.15498223,95110.0,95093.0,0.09468]
[1768777769629,0.09544817,95103.0,95087.0,0.00015767]
[1768777769828,0.14544817,95103.0,95088.0,0.09468]
[1768777772329,0.10498223,95109.0,95088.0,0.1052]
[1768777772521,0.15498223,95109.0,95088.0,0.1052]
[1768777772719,0.09544817,95108.0,95088.0,0.1052]
[1768777773018,0.04,95108.0,95090.0,0.12747639]
[1768777773729,0.09544817,95103.0,95091.0,0.09468]
[1768777773927,0.09544817,95102.0,95091.0,0.09468]
[1768777774227,0.15544817,95102.0,95091.0,0.09468]
[1768777774529,0.15313502,95102.0,95091.0,0.09468]
[1768777775729,0.09313502,95102.0,95091.0,0.09468]
[1768777775930,0.05,95102.0,95091.0,0.09468]
[1768777776132,0.010517,95109.0,95091.0,0.09468]
[1768777776331,0.060517,95109.0,95091.0,0.09468]
[1768777776525,0.15596517,95109.0,95091.0,0.09468]
[1768777777527,0.14544817,95109.0,95091.0,0.09468]
[1768777779632,0.15544817,95109.0,95091.0,0.09468]
[1768777780126,0.010518,95108.0,95091.0,0.09468]
[1768777780328,0.010519,95097.0,95087.0,0.00015767]
[1768777780628,0.09943995,95094.0,95084.0,0.08468]
[1768777780833,0.14943995,95094.0,95084.0,0.08468]
[1768777781427,0.09943995,95102.0,95084.0,0.08468]
[1768777781624,0.15943995,95102.0,95084.0,0.08468]
[1768777781833,0.06,95102.0,95084.0,0.08468]
[1768777782534,0.0576888,95102.0,95084.0,0.08468]
[1768777782730,0.010519,95097.0,95084.0,0.08468]
[1768777782937,0.010519,95097.0,95081.0,0.09468]
[1768777782938,0.09943995,95094.0,95081.0,0.09468]
[1768777783135,0.09943995,95093.0,95081.0,0.09468]
[1768777783331,0.10878887,95090.0,95077.0,0.09468]
[1768777783636,0.15878887,95090.0,95077.0,0.09468]
[1768777783825,0.09943995,95081.0,95067.0,0.09411562]
[1768777784031,0.09943995,95081.0,95059.0,0.09411562]
[1768777784032,0.10996095,95075.0,95059.0,0.09411562]
[1768777784228,0.14943995,95075.0,95058.0,0.09468]
[1768777784428,0.10996195,95067.0,95049.0,0.00231461]
[1768777784637,0.14943995,95067.0,95050.0,0.09468]
[1768777785236,8.921e-05,95066.0,95050.0,0.09468]
[1768777785438,0.05008921,95066.0,95050.0,0.09468]
[1768777786233,0.09943995,95065.0,95044.0,3.3e-07]
[1768777786433,0.05,95065.0,95045.0,0.09219268]
[1768777787444,0.05,95065.0,95045.0,0.10215975]
[1768777788139,0.05,95065.0,95045.0,0.11402467]
[1768777788942,0.04768723,95065.0,95045.0,0.11402467]
[1768777790335,0.04768723,95065.0,95050.0,0.11835997]
[1768777790529,0.04768723,95065.0,95048.0,0.10215975]
[1768777790742,0.04537651,95065.0,95045.0,0.01186492]
[1768777790943,0.04537651,95065.0,95044.0,3.3e-07]
[1768777791237,8.921e-05,95066.0,95050.0,0.12832704]
[1768777791439,0.09472,95071.0,95059.0,0.10215975]
[1768777791647,0.14472,95071.0,95059.0,0.10215975]
[1768777791849,0.09472,95071.0,95059.0,0.09219268]
[1768777792539,4.499e-05,95070.0,95059.0,0.09219268]
[1768777793035,0.06004499,95070.0,95054.0,0.00996707]
[1768777793232,0.06004499,95070.0,95049.0,0.00948885]
[1768777793438,0.06004499,95070.0,95049.0,0.10287147]
[1768777793734,0.06004499,95070.0,95051.0,0.10287147]
[1768777795140,4.499e-05,95070.0,95055.0,0.00948885]
[1768777795342,4.499e-05,95070.0,95055.0,0.10287147]
[1768777795642,0.05004499,95070.0,95055.0,0.10287147]
[1768777796043,4.499e-05,95070.0,95056.0,0.00948885]
[1768777796245,4.499e-05,95070.0,95050.0,0.12888397]
[1768777796246,4.499e-05,95070.0,95059.0,0.10287147]
[1768777797036,0.09245416,95073.0,95059.0,0.10287147]
[1768777797240,0.14245416,95073.0,95059.0,0.10287147]
[1768777797540,0.09280134,95089.0,95066.0,0.10287147]
[1768777797743,0.09361951,95095.0,95071.0,0.10287147]
[1768777797937,0.15413851,95095.0,95072.0,0.10287147]
[1768777798445,0.09472,95094.0,95074.0,0.00015776]
[1768777798641,0.05,95094.0,95074.0,0.00015776]
[1768777798846,0.09241025,95093.0,95074.0,0.10302923]
[1768777799042,0.14241025,95093.0,95074.0,0.10302923]
[1768777799543,0.05,95093.0,95074.0,0.10302923]
[1768777799744,0.05,95093.0,95076.0,0.10287147]
[1768777799944,0.05,95093.0,95080.0,0.11835997]
[1768777800249,0.05,95093.0,95080.0,0.10287147]
[1768777800436,0.05,95093.0,95080.0,0.09338262]
[1768777800639,0.05,95093.0,95075.0,0.00948885]
[1768777800943,0.01133344,95092.0,95074.0,0.00015776]
[1768777801138,0.06133344,95092.0,95074.0,0.00015776]
[1768777801339,0.10413629,95085.0,95074.0,0.00015776]
[1768777801547,0.14361629,95085.0,95065.0,0.09472]
[1768777801844,0.05,95085.0,95072.0,0.10287147]
[1768777802045,0.09472,95095.0,95076.0,0.10287147]
[1768777802243,0.14472,95095.0,95076.0,0.10287147]
[1768777802643,0.14472,95095.0,95076.0,0.09338262]
[1768777803148,0.09367163,95094.0,95071.0,0.00948885]
[1768777803442,0.09280134,95093.0,95072.0,0.010522]
[1768777803648,0.05,95093.0,95072.0,0.00948885]
[1768777804045,0.05,95093.0,95038.0,0.37892]
[1768777804046,0.09367163,95077.0,95053.0,0.00948885]
[1768777804244,0.14367163,95077.0,95053.0,0.00948885]
[1768777804545,0.05,95077.0,95056.0,0.010523]
[1768777804750,0.05,95077.0,95056.0,0.02001185]
[1768777805048,0.04769014,95077.0,95056.0,0.02001185]
[1768777805249,0.04769014,95077.0,95056.0,0.00948885]
[1768777806946,0.04538088,95077.0,95056.0,0.00948885]
[1768777807544,0.04538088,95077.0,95058.0,0.010523]
[1768777808254,0.04538088,95077.0,95056.0,0.00948885]
[1768777809548,0.010521,95075.0,95056.0,0.00948885]
[1768777809751,0.06,95075.0,95056.0,0.00948885]
[1768777811053,0.010521,95074.0,95054.0,0.09338262]
[1768777811353,0.05,95074.0,95054.0,0.09338262]
[1768777811555,0.05,95074.0,95054.0,0.10287147]
[1768777813047,0.05,95074.0,95055.0,0.10287147]
[1768777813247,0.04769063,95074.0,95055.0,0.10287147]
[1768777813951,0.04769063,95074.0,95056.0,0.00948885]
[1768777814156,0.04769063,95074.0,95056.0,0.10287147]
[1768777814854,0.04769063,95074.0,95060.0,0.05672019]
[1768777815054,0.04538185,95074.0,95060.0,0.05672019]
[1768777816348,0.2135746,95070.0,95060.0,1.9e-07]
[1768777816550,0.09280134,95067.0,95046.0,0.11339547]
[1768777816745,0.05,95067.0,95048.0,0.00948885]
[1768777816948,0.05,95067.0,95051.0,0.00948885]
[1768777817156,0.05,95067.0,95052.0,0.10287147]
[1768777817351,0.05,95067.0,95051.0,0.010524]
[1768777817556,0.05,95067.0,95047.0,0.00948885]
[1768777817851,0.15573663,95067.0,95046.0,0.09338262]
[1768777818252,0.15573663,95067.0,95046.0,0.10287147]
[1768777818649,0.15332334,95067.0,95046.0,0.10287147]
[1768777818945,0.14280134,95067.0,95046.0,0.10287147]
[1768777819149,0.010522,95066.0,95046.0,0.10287147]
[1768777819345,0.010522,95066.0,95044.0,0.18183986]
[1768777819346,0.0954127,95056.0,95044.0,3.3e-07]
[1768777819560,0.1454127,95056.0,95044.0,3.3e-07]
[1768777819957,0.14280134,95056.0,95044.0,3.3e-07]
[1768777820160,0.05,95056.0,95044.0,3.3e-07]
[1768777820657,0.05,95056.0,95044.0,0.01145518]
[1768777821357,0.04769111,95056.0,95044.0,0.02198018]
[1768777821660,0.04769111,95056.0,95044.0,0.01145518]
[1768777827557,0.04769111,95056.0,95045.0,0.00924179]
[1768777827956,0.04769111,95056.0,95045.0,0.10890267]
[1768777828156,0.04769111,95056.0,95045.0,0.09966088]
[1768777829063,0.04769111,95056.0,95046.0,0.10532606]
[1768777829758,0.04769111,95056.0,95045.0,0.09966088]
[1768777829959,0.04769111,95056.0,95044.0,0.01145518]
[1768777831264,0.04538282,95056.0,95044.0,0.01145518]
[1768777831657,0.04538282,95056.0,95028.0,0.010526]
[1768777831658,0.00370882,95052.0,95045.0,0.09472]
[1768777831852,0.00370882,95052.0,95037.0,0.05451411]
[1768777831853,0.010524,95046.0,95037.0,0.05451411]
[1768777832062,8.774e-05,95043.0,95037.0,0.09404732]
[1768777832262,0.05,95043.0,95037.0,0.09404732]
[1768777832458,0.010526,95036.0,95017.0,0.09966088]
[1768777832756,0.060526,95036.0,95026.0,0.09472]
[1768777833168,0.010526,95031.0,95024.0,2e-07]
[1768777833366,0.05,95031.0,95024.0,0.0947202]
[1768777834167,0.00074338,95033.0,95024.0,0.0947202]
[1768777834476,0.06074338,95033.0,95024.0,0.0947202]
[1768777835766,0.00074338,95045.0,95025.0,0.09966088]
[1768777835956,0.05,95045.0,95025.0,0.09966088]
[1768777836161,0.05,95045.0,95025.0,0.10890267]
[1768777836464,0.05,95045.0,95029.0,0.10890267]
[1768777836656,0.0110293,95055.0,95031.0,0.10890267]
[1768777836859,0.010524,95052.0,95031.0,0.10890267]
[1768777837066,0.05,95052.0,95031.0,0.10890267]
[1768777837266,0.05,95052.0,95037.0,0.09966088]
[1768777837573,0.0476916,95052.0,95039.0,0.09966088]
[1768777837872,0.04,95052.0,95039.0,0.09966088]
[1768777838073,0.010523,95056.0,95039.0,0.09966088]
[1768777838264,0.050523,95056.0,95039.0,0.09966088]
[1768777839167,0.010524,95054.0,95039.0,0.09966088]
[1768777839370,0.010524,95053.0,95038.0,0.09472]
[1768777839570,0.00020917,95051.0,95039.0,0.09472]
[1768777839776,0.05020917,95051.0,95039.0,0.09472]
[1768777840368,0.010524,95049.0,95039.0,0.09472]
[1768777840679,0.00081525,95041.0,95024.0,2e-07]
[1768777840972,0.00081525,95039.0,95025.0,0.09472]
[1768777841163,0.010526,95034.0,95024.0,2e-07]
[1768777841363,0.010526,95032.0,95024.0,2e-07]
[1768777841565,0.05,95032.0,95024.0,2e-07]
[1768777845681,0.04768577,95032.0,95024.0,2e-07]
[1768777845877,0.10050967,95050.0,95024.0,0.00996974]
[1768777846073,0.14472,95050.0,95029.0,0.09664945]
[1768777846268,0.155244,95050.0,95029.0,0.09664945]
[1768777846468,0.14472,95050.0,95029.0,0.10717545]
[1768777846787,0.05,95050.0,95035.0,0.09664945]